Cogmind - Beta 14 @@@ ROGUE MODE // 2024.09.11 @ 17:15:55 Player: CONM Result: Destroyed by Y-54 Guardian with Gatling Laser Performance ------------- Evolutions (3) 1500 Regions Visited (9) 1800 Robots Destroyed (79) 395 Value Destroyed (2856) 2856 Prototype IDs (5) 100 Alien Tech Used (0) 0 Bonus (-35) -35 TOTAL SCORE: 6616 Bonus ------- High Alert Combat Kills 61 Follower Combat Kills 118 Friendly Fire -214 Cogmind --------- Core Integrity 0/700 Matter 300/300 Energy 99/100 System Corruption 37% Temperature Cool (6) Movement Walking (190) Ox1 Location -7/Lower Caves Parts ------- > --- POWER (1) -------- (None) > --- PROPULSION (3) --- Aluminum Leg > --- UTILITY (6) ------ Large Storage Unit > --- WEAPON (3) ------- (None) > --- INVENTORY (15) --- Light Deuterium Engine Light Nuclear Core Micro Nuclear Core Huge Storage Unit Medium Matter Pod (100) Large Matter Pod (150) Compact Matter Pod (150) Sensor Array Improved Terrain Scanner Improved Terrain Scanner Particle Charger Hardlight Generator Hacking Suite Improved Field Recycling Unit (0) Improved Field Recycling Unit (0) Peak State ------------ > --- POWER ------------ Micro Nuclear Core > --- PROPULSION ------- Light Treads Light Treads Light Treads > --- UTILITY ---------- High-capacity Storage Unit Compact Battery Advanced Visual Processing Unit Hardened Heavy Armor Plating Improved Shield Generator > --- WEAPON ----------- Minigun Enhanced Autogun Flak Gun > --- INVENTORY -------- Improved Ion Engine Light Deuterium Engine Armored Wheel Improved Cooling System Large Storage Unit Huge Storage Unit Medium Matter Pod Large Matter Pod Compact Matter Pod Sensor Array Improved Terrain Scanner Particle Charger Light Armor Plating Light Armor Plating Hardened Medium Armor Plating Hardlight Generator Hacking Suite Dynamic Insulation System Improved Field Recycling Unit Improved Field Recycling Unit [Rating: 41] Favorites ----------- Power Light Nuclear Core Engine Ion Engine Power Core Light Nuclear Core Propulsion Light Treads Treads Light Treads Leg Aluminum Leg Wheel Wheel Utility High-capacity Storage Unit Device Seismic Detector Storage High-capacity Storage Unit Processor Advanced Visual Processing Unit Protection Light Armor Plating Weapon Assault Rifle Energy Gun Improved EM Shotgun Ballistic Gun Assault Rifle Launcher Improved Grenade Launcher Slashing Weapon Katana Build | -11 -10 -10 -9 -9 -9 -8 -8 -7 -7 ------- Run | Yrd Mat Min Mat Min Exi Min Mat Fac Low Slots Evolved 6 | . . . 2 . . . 2 2 . Power . | . . . . . . . . . . Propulsion 1 | . . . . . . . 1 . . Utility 4 | . . . 1 . . . 1 2 . Weapon 1 | . . . 1 . . . . . . Parts Attached 100 | 8 . 2 9 4 1 5 36 26 9 Power 15 | 2 . . 1 . . 1 8 2 1 Engine 8 | 2 . . . . . 1 4 . 1 Core 7 | . . . 1 . . . 4 2 . Reactor . | . . . . . . . . . . Propulsion 30 | 2 . 1 3 . 1 2 7 9 5 Treads 18 | 2 . 1 3 . 1 . 4 6 1 Leg 6 | . . . . . . . . 3 3 Wheel 6 | . . . . . . 2 3 . 1 Hover . | . . . . . . . . . . Flight . | . . . . . . . . . . Utility 29 | 2 . . 3 2 . 1 8 11 2 Device 9 | 1 . . . 1 . . 2 4 1 Storage 6 | 1 . . 1 . . . 2 1 1 Processor 3 | . . . . . . . 2 1 . Hackware . | . . . . . . . . . . Protection 11 | . . . 2 1 . 1 2 5 . Artifact . | . . . . . . . . . . Weapon 26 | 2 . 1 2 2 . 1 13 4 1 Energy Gun 12 | . . . 1 1 . . 7 2 1 Energy Cannon . | . . . . . . . . . . Ballistic Gun 10 | 2 . . 1 . . . 5 2 . Ballistic Cannon . | . . . . . . . . . . Launcher 3 | . . 1 . 1 . 1 . . . Special Weapon . | . . . . . . . . . . Impact Weapon . | . . . . . . . . . . Slashing Weapon 1 | . . . . . . . 1 . . Piercing Weapon . | . . . . . . . . . . Special Melee Weapon . | . . . . . . . . . . Unidentified Prototypes 3 | . . . . . . . 3 . . Parts Lost 47 | . . . . 4 . 7 10 13 13 Power 5 | . . . . . . 1 2 1 1 Propulsion 16 | . . . . 1 . 2 3 4 6 Utility 13 | . . . . 1 . 2 . 5 5 Weapon 13 | . . . . 2 . 2 5 3 1 Highest Loss Streak 11 | . . . . 3 . 6 2 5 11 To Critical Strikes 2 | . . . . . . . . 1 1 Average Slot Usage (%) 85 | . 100 100 94 98 79 79 87 81 49 Engine 3 | . 14 14 1 . . 4 2 1 . Core 6 | . . . 9 11 11 5 6 5 3 Treads 13 | . 28 28 22 21 13 12 3 12 9 Leg 1 | . . . . . . . . 4 5 Wheel 5 | . . . . . . 9 18 . 3 Device 9 | . 14 14 11 10 11 9 6 8 7 Storage 11 | . 14 14 11 11 11 11 15 9 7 Processor 4 | . . . . . . . 10 6 3 Protection 6 | . . . 10 11 11 10 3 11 3 Energy Gun 5 | . . . 2 1 11 5 12 4 4 Ballistic Gun 12 | . 28 24 17 20 . . 7 14 . Launcher 3 | . . 3 8 11 11 10 . . . Peak Build Rating 41 | 7 8 10 15 18 17 17 30 41 28 Average Rating 21 | 5 7 8 14 16 16 14 25 34 17 On Entrance 13 | . 7 8 10 15 16 17 10 24 27 Naked Turns . | . . . . . . . . . . Heaviest Build 83 | 14 14 19 42 42 38 39 62 83 55 Greatest Support 68 | 40 40 40 40 40 40 40 60 68 48 Greatest Overweight (x) 27 | . . . 1 1 1 1 2 27 5 Average Overweight (x) . | . . . . . . . 1 1 2 Largest Inventory Capacity 25 | 8 8 8 15 15 15 15 20 25 20 Average Capacity 16 | 6 8 8 13 15 15 15 19 20 19 Most Carried 20 | 4 8 8 15 15 14 15 20 20 19 Average Carried 15 | 1 6 7 9 14 13 12 18 19 17 Final Capacity 20 | 8 8 8 15 15 15 15 20 20 15 Final Carried 20 | 4 8 8 15 14 14 10 20 20 15 Class Distribution -------------------- 51% | Mutant 24% | Scavenger-Tank 11% | Scavenger-Mutant 8% | Skirmisher 3% | Tank Dominant Class ---------------- Mutant | -10/Materials Mutant | -10/Mines Mutant | -9/Materials Scavenger-Tank | -9/Mines Mutant | -9/Exiles Scavenger-Mutant | -8/Mines Mutant | -8/Materials Scavenger-Tank | -7/Factory Mutant | -7/Lower Caves Resources | -11 -10 -10 -9 -9 -9 -8 -8 -7 -7 ----------- Run | Yrd Mat Min Mat Min Exi Min Mat Fac Low Matter Collected 3175 | 296 103 139 244 346 . 85 778 1039 145 Remotely 85 | . . . . . . 85 . . . Salvage Created 3457 | 112 103 117 251 78 . 68 1559 970 199 Parts 165 | 6 6 5 18 4 . 1 71 50 4 Haulers Intercepted 7 | . . . 1 . . . 4 2 . Recyclers Shooed 6 | 1 . 1 . . . . 2 2 . Parts Field Recycled . | . . . . . . . . . . Retrieved Matter . | . . . . . . . . . . Parts Self-Destructed 1 | . . . . . . . . . 1 Prevented . | . . . . . . . . . . Kills | -11 -10 -10 -9 -9 -9 -8 -8 -7 -7 ------- Run | Yrd Mat Min Mat Min Exi Min Mat Fac Low Combat Hostiles Destroyed 69 | . 2 2 4 14 . 6 19 20 2 Melee 2 | . . . . . . . . . 2 Guns 47 | . 2 1 4 2 . . 18 20 . AOE 19 | . . 1 . 12 . 6 . . . Classes Destroyed 17 | 2 1 1 2 3 . 1 4 2 1 Worker 2 | . . . . . . . 1 1 . Builder 4 | . . 1 1 . . . 2 . . Tunneler 2 | 1 . 1 . . . . . . . Hauler 7 | . . . 1 . . . 4 2 . Recycler 3 | 1 . . . . . . 2 . . Mechanic 1 | . . . . . . . 1 . . Watcher 1 | . . . . . . . 1 . . Swarmer 3 | . . . . . . . . 3 . Grunt 31 | . 2 2 1 1 . 5 10 8 2 Brawler 2 | . . . . . . 1 . 1 . Duelist 1 | . . . . 1 . . . . . Sentry 12 | . . . 3 . . . 6 3 . Demolisher 1 | . . . . 1 . . . . . Hunter 4 | . . . . . . . 3 1 . Programmer 4 | . . . . . . . . 4 . Samaritan 3 | . . . . . . . . . 3 Assembled 11 | . . . . 11 . . . . . Thug 1 | . . 1 . . . . . . . Best Kill Streak 11 | 2 2 3 3 11 . 3 4 5 1 Combat Bots Only 11 | . 2 2 3 11 . 3 2 5 1 Max Kills in Single Turn 5 | 1 1 2 2 5 . 2 1 2 1 Gunslinging . | . . . . . . . . . . Exploded 4 | . . 1 . 4 . 2 . . . Melee 1 | . . . . . . . . . 1 Uniques/NPCs Destroyed . | . . . . . . . . . . Combat | -11 -10 -10 -9 -9 -9 -8 -8 -7 -7 -------- Run | Yrd Mat Min Mat Min Exi Min Mat Fac Low Hostile Shots Fired 605 | . 8 4 23 28 . 25 97 297 123 Missed 166 | . 3 1 4 9 . 8 23 83 35 Damage Taken 6745 | . 75 93 294 612 . 450 1341 2385 1495 Core 1055 | . . . 72 31 . 27 225 288 412 Absorbed by Shields 268 | . . . . . . . . 268 . Core Remaining (%) 81 | 100 . 100 . . . 67 59 . . Volleys Fired 263 | 4 7 6 21 15 . 14 87 80 29 Largest 3 | 2 2 2 3 3 . 2 3 3 1 Hottest 186 | 40 40 56 105 85 . 101 186 153 65 Shots Fired 509 | 8 14 12 48 36 . 16 194 151 30 Gun 481 | 8 14 8 47 27 . 3 193 151 30 Cannon . | . . . . . . . . . . Launcher 28 | . . 4 1 9 . 13 1 . . Special . | . . . . . . . . . . Kinetic 312 | 8 14 8 41 22 . . 90 129 . Thermal 93 | . . . 6 5 . 3 27 22 30 Explosive 28 | . . 4 1 9 . 13 1 . . Electromagnetic 76 | . . . . . . . 76 . . Robot Hit Streak 17 | 2 4 6 17 7 . 11 13 12 9 Robot Miss Streak 6 | 1 2 1 3 2 . 3 5 6 1 Penetration Max . | . . . . . . . . . . Secondary Targets 2 | . . . . . . . 1 1 . Max Gunslinging Chain 1 | . . . . . . . 1 1 . Shots Hit Robots 362 | 5 8 8 31 21 . 13 144 108 24 Core Hits 253 | 3 4 6 16 30 . 17 74 89 14 Critical Kills 5 | . . . . . . . . 5 . Critical Parts Destroyed 3 | . . . . . . . 1 2 . Critical Strikes 10 | . . . . . . . 1 7 2 Burn 2 | . . . . . . . . . 2 Destroy 8 | . . . . . . . 1 7 . Melee Attacks . | . . . . . . . . . . Impact . | . . . . . . . . . . Slashing . | . . . . . . . . . . Piercing . | . . . . . . . . . . Sneak Attacks . | . . . . . . . . . . Combat Hostiles . | . . . . . . . . . . Follow-up Attacks . | . . . . . . . . . . Damage Inflicted 8166 | 62 92 353 479 976 . 1138 2784 1861 421 Guns 5395 | 62 92 60 375 179 . 56 2333 1861 377 Cannons . | . . . . . . . . . . Explosions 2727 | . . 293 104 797 . 1082 451 . . Melee . | . . . . . . . . . . Ramming 44 | . . . . . . . . . 44 Kinetic 3188 | 62 92 60 298 118 . . 917 1641 . Thermal 1431 | . . . 77 61 . 56 640 220 377 Explosive 2399 | . . 293 104 797 . 1082 123 . . Electromagnetic 1104 | . . . . . . . 1104 . . Impact . | . . . . . . . . . . Slashing . | . . . . . . . . . . Piercing . | . . . . . . . . . . Highest Corruption 37 | . . . . . . . 7 8 37 Average Corruption 8 | . . . . . . . 4 5 22 Corruption Purged . | . . . . . . . . . . Corruption Blocked . | . . . . . . . . . . Effects 77 | . . . . . . . 24 30 23 Message Errors 23 | . . . . . . . 6 10 7 Matter Fused 9 | . . . . . . . 4 5 . Heat Flow Errors 11 | . . . . . . . 3 4 4 Energy Discharges 11 | . . . . . . . 3 5 3 Parts Rejected 4 | . . . . . . . 1 1 2 Parts Fused 1 | . . . . . . . 1 . . Data Loss (minor) 5 | . . . . . . . 3 1 1 Data Loss (major) 5 | . . . . . . . 2 1 2 Misfires 2 | . . . . . . . . 1 1 Alerts 1 | . . . . . . . . 1 . Misdirections 3 | . . . . . . . . . 3 Weapon Failures 2 | . . . . . . . 1 1 . Overload Shots . | . . . . . . . . . . Overflow Damage 41 | . . . . . . 13 28 . . Projectiles . | . . . . . . . . . . Explosions 41 | . . . . . . 13 28 . . Melee . | . . . . . . . . . . Knockbacks . | . . . . . . . . . . Impact . | . . . . . . . . . . Kinetic . | . . . . . . . . . . Secondary . | . . . . . . . . . . Self-Inflicted Damage 542 | . . 58 . 78 . 164 236 . 6 Shots 13 | . . 2 . 2 . 4 5 . . Rammed 10 | . . . . . . . . . 10 Targets Rammed 11 | . . . . . . . . . 11 Kicked 1 | . . . . . . . . . 1 Crushed . | . . . . . . . . . . Highest Temperature 351 | . 18 4 351 162 . 104 230 294 239 Average Temperature 67 | . 10 3 104 60 . 33 46 77 79 Received Heat Transfer 2142 | . 42 21 105 20 . 180 423 733 618 Effects 6 | . . . 2 . . . . 4 . Interference 6 | . . . 2 . . . . 4 . Siege Activations . | . . . . . . . . . . Robots Corrupted 1 | . . . . . . . 1 . . Combat Hostiles 1 | . . . . . . . 1 . . Parts Fried 12 | . . . . . . . 12 . . Impact Corruptions . | . . . . . . . . . . Robots Melted . | . . . . . . . . . . Combat Hostiles . | . . . . . . . . . . Parts Melted . | . . . . . . . . . . Heat Transferred 2685 | . . . 90 85 . 65 891 518 1036 Parts Sabotaged . | . . . . . . . . . . Parts Stolen . | . . . . . . . . . . Parts Stripped . | . . . . . . . . . . Power Chain Reactions 5 | . . . . . . . 5 . . Alert | -11 -10 -10 -9 -9 -9 -8 -8 -7 -7 ------- Run | Yrd Mat Min Mat Min Exi Min Mat Fac Low Peak Influence 517 | 10 56 143 140 166 . 183 398 517 . Initial 156 | . 6 21 . 54 . . 70 156 . Average 175 | 2 16 48 75 108 . 55 208 292 . Maximum Alert Level 2 | . . . . . . . 1 2 . Low Security (%) 61 | 100 100 100 100 100 . 100 51 20 . Level 1 30 | . . . . . . . 48 53 . Level 2 7 | . . . . . . . . 26 . Level 3 . | . . . . . . . . . . Level 4 . | . . . . . . . . . . Level 5 . | . . . . . . . . . . High Security . | . . . . . . . . . . Max Security . | . . . . . . . . . . Squads Dispatched 18 | . . 2 1 . . . 3 12 . Investigation 3 | . . 1 . . . . 1 1 . Extermination 3 | . . . . . . . . 3 . Reinforcement 4 | . . . 1 . . . 2 1 . Assault 2 | . . 1 . . . . . 1 . Garrison 6 | . . . . . . . . 6 . Intercept . | . . . . . . . . . . Searches Triggered . | . . . . . . . . . . Construction Impeded . | . . . . . . . . . . Haulers Reinforced . | . . . . . . . . . . Active Scanning Responses . | . . . . . . . . . . Cargo Convoy Interrupts . | . . . . . . . . . . Stealth | -11 -10 -10 -9 -9 -9 -8 -8 -7 -7 --------- Run | Yrd Mat Min Mat Min Exi Min Mat Fac Low Distress Signals 9 | . . . 1 . . . 7 1 . Communications Jammed . | . . . . . . . . . . Distress Signals . | . . . . . . . . . . Times Spotted 136 | . 2 4 10 20 . 6 39 48 7 Peak Tracking Total 11 | . 2 2 4 11 . 3 5 6 5 Tactical Retreats 15 | . . 1 . 1 . . 4 8 1 Traps | -11 -10 -10 -9 -9 -9 -8 -8 -7 -7 ------- Run | Yrd Mat Min Mat Min Exi Min Mat Fac Low Traps Triggered 6 | . . . . . . . 4 2 . Indirectly . | . . . . . . . . . . Trap Hack Attempts . | . . . . . . . . . . Triggered . | . . . . . . . . . . Disarmed . | . . . . . . . . . . Reprogrammed . | . . . . . . . . . . Reused . | . . . . . . . . . . Traps Extracted . | . . . . . . . . . . Installed . | . . . . . . . . . . Triggered . | . . . . . . . . . . Machines | -11 -10 -10 -9 -9 -9 -8 -8 -7 -7 ---------- Run | Yrd Mat Min Mat Min Exi Min Mat Fac Low Machines Disabled 6 | . . . . . . 2 4 . . Max in Single Turn 2 | . . . . . . 1 2 . . Machines Repaired . | . . . . . . . . . . Machines Dismantled . | . . . . . . . . . . Machines Sabotaged . | . . . . . . . . . . Overloaded Fab Kills . | . . . . . . . . . . Hacking | -11 -10 -10 -9 -9 -9 -8 -8 -7 -7 --------- Run | Yrd Mat Min Mat Min Exi Min Mat Fac Low Machines Accessed 14 | . 1 1 4 . 1 . 4 3 . Terminals 9 | . 1 . 3 . . . 4 1 . Fabricators . | . . . . . . . . . . Repair Stations . | . . . . . . . . . . Recycling Units 2 | . . . 1 . . . . 1 . Scanalyzers . | . . . . . . . . . . Garrison Access 1 | . . . . . . . . 1 . Total Hacks 30 | . 2 1 11 . 1 . 9 6 . Successful 12 | . . 1 4 . 1 . 4 2 . Failed 18 | . 2 . 7 . . . 5 4 . Catastrophic 3 | . . . 1 . . . 1 1 . Database Lockouts . | . . . . . . . . . . Manual 5 | . . . 1 . . . 2 2 . Terminals 23 | . 2 . 9 . . . 9 3 . Fabricators . | . . . . . . . . . . Repair Stations . | . . . . . . . . . . Recycling Units 4 | . . . 2 . . . . 2 . Scanalyzers . | . . . . . . . . . . Garrison Access 1 | . . . . . . . . 1 . Terminal Hacks 8 | . . 1 2 . 1 . 3 1 . Record 1 | . . . . . 1 . . . . Prototype ID Bank 1 | . . . . . . . 1 . . Open Door 1 | . . 1 . . . . . . . Branch Access Points 1 | . . . . . . . 1 . . Terminal Index 1 | . . . . . . . 1 . . Zone Layout 3 | . . . 2 . . . . 1 . Fabricator Hacks . | . . . . . . . . . . Repair Station Hacks . | . . . . . . . . . . Recycling Unit Hacks 2 | . . . 1 . . . . 1 . Report Inventory 1 | . . . . . . . . 1 . Retrieve Matter 1 | . . . 1 . . . . . . Scanalyzer . | . . . . . . . . . . Garrison Access Hacks . | . . . . . . . . . . Unauthorized Hacks 2 | . . . 1 . . . 1 . . Terminals 2 | . . . 1 . . . 1 . . Botnet 2 | . . . 1 . . . 1 . . Fabricators . | . . . . . . . . . . Repair Stations . | . . . . . . . . . . Recycling Units . | . . . . . . . . . . Scanalyzers . | . . . . . . . . . . Garrison Access . | . . . . . . . . . . Data Cores Recovered . | . . . . . . . . . . Used . | . . . . . . . . . . Hacking Detections 9 | . 1 . 3 . . . 2 3 . Full Trace Events 1 | . . . . . . . . 1 . Feedback Events . | . . . . . . . . . . Feedback Blocked . | . . . . . . . . . . Robot Schematics Acquired . | . . . . . . . . . . Robots Built . | . . . . . . . . . . Authchips . | . . . . . . . . . . Time . | . . . . . . . . . . Total Robot Build Rating . | . . . . . . . . . . Part Schematics Acquired . | . . . . . . . . . . Parts Built . | . . . . . . . . . . Authchips . | . . . . . . . . . . Time . | . . . . . . . . . . Total Part Build Rating . | . . . . . . . . . . Parts Repaired . | . . . . . . . . . . Time . | . . . . . . . . . . Parts Recycled . | . . . . . . . . . . Recycled Matter . | . . . . . . . . . . Retrieved Matter . | . . . . . . . . . . Retrieved Components . | . . . . . . . . . . Parts Scanalyzed . | . . . . . . . . . . Part Schematics Acquired . | . . . . . . . . . . Parts Damaged . | . . . . . . . . . . Bothacking | -11 -10 -10 -9 -9 -9 -8 -8 -7 -7 ------------ Run | Yrd Mat Min Mat Min Exi Min Mat Fac Low Used RIF Installer . | . . . . . . . . . . Robots Hacked . | . . . . . . . . . . Non-combat . | . . . . . . . . . . Combat . | . . . . . . . . . . Robot Hacks Applied . | . . . . . . . . . . Relay Couplers Released . | . . . . . . . . . . Fabnet Peak Effective % . | . . . . . . . . . . Robots Rewired . | . . . . . . . . . . Allies Hacked . | . . . . . . . . . . Hacks Repelled . | . . . . . . . . . . Allies | -11 -10 -10 -9 -9 -9 -8 -8 -7 -7 -------- Run | Yrd Mat Min Mat Min Exi Min Mat Fac Low Total Allies 1 | . . 1 . . . . . . . Largest Group 1 | . . 1 1 . . . . . . Highest-Rated Group 31 | . . 31 31 . . . . . . Highest-Rated Ally 31 | . . 31 31 . . . . . . Total Orders . | . . . . . . . . . . Ally Attacks 22 | . . . 22 . . . . . . Total Damage 360 | . . . 360 . . . . . . Kills 5 | . . . 5 . . . . . . Allies Corrupted . | . . . . . . . . . . Allies Melted . | . . . . . . . . . . Intel | -11 -10 -10 -9 -9 -9 -8 -8 -7 -7 ------- Run | Yrd Mat Min Mat Min Exi Min Mat Fac Low Robot Analysis Total . | . . . . . . . . . . Derelict Logs Recovered 4 | . . . . 2 . . . . 2 Drone Launches . | . . . . . . . . . . Drone Recoveries . | . . . . . . . . . . Exploration | -11 -10 -10 -9 -9 -9 -8 -8 -7 -7 ------------- Run | Yrd Mat Min Mat Min Exi Min Mat Fac Low Turns Passed 6670 | 144 378 405 530 547 374 258 1851 1702 481 Spaces Moved 3383 | 78 218 239 211 277 178 168 1241 540 233 Core 8 | 6 . . . . . . . 2 . Treads 1836 | 72 218 239 211 277 178 80 134 400 27 Legs 232 | . . . . . . . . 138 94 Wheels 1307 | . . . . . . 88 1107 . 112 Hover . | . . . . . . . . . . Flight . | . . . . . . . . . . Fastest Speed 50 | 50 160 160 160 160 160 105 101 160 120 Average Speed 165 | 151 160 160 211 180 209 131 114 258 164 Slowest Speed 1400 | 160 160 160 240 240 240 160 240 1400 330 Overloaded Moves . | . . . . . . . . . . Propulsion Burnouts . | . . . . . . . . . . Robots Hopped . | . . . . . . . . . . Cave-ins Triggered . | . . . . . . . . . . Exploration Rate (%) 37 | 5 20 66 21 62 49 48 62 13 30 Regions Visited 9 Branch Regions 5 Pre-discovered Areas 2 | . . 1 . . 1 . . . . Known Exits Taken 1 | . . . . . . 1 . . . Unknown Exits Taken 8 | 1 1 1 1 1 1 . 1 1 . Scrap Searched 2 | . . 1 . . . 1 . . . Spaces Dug . | . . . . . . . . . . Terrain Destroyed 331 | . . 59 13 101 . 96 62 . . Melee . | . . . . . . . . . . Projectile . | . . . . . . . . . . AOE 331 | . . 59 13 101 . 96 62 . . Terrain Rammed . | . . . . . . . . . . Walls Destroyed . | . . . . . . . . . . Machines Disabled . | . . . . . . . . . . Actions | -11 -10 -10 -9 -9 -9 -8 -8 -7 -7 --------- Run | Yrd Mat Min Mat Min Exi Min Mat Fac Low Total 4029 | 93 236 251 253 296 179 189 1519 729 284 Wait 196 | 1 6 . 8 . . 2 118 60 1 Move 3374 | 77 217 238 210 276 177 167 1240 539 233 Hop . | . . . . . . . . . . Pick Up 56 | 3 5 2 4 1 1 1 25 14 . Fast Attach 35 | 7 . . 1 . . . 9 14 4 Attach 28 | . . . 1 2 1 5 7 7 5 Detach . | . . . . . . . . . . Swap 37 | 1 . 2 7 2 . . 20 5 . Drop 29 | . 1 3 1 . . . 13 10 1 Fire 263 | 4 7 6 21 15 . 14 87 80 29 Melee . | . . . . . . . . . . Ram 4 | . . . . . . . . . 4 Kick 1 | . . . . . . . . . 1 Crush 6 | . . . . . . . . . 6 Escape Stasis . | . . . . . . . . . . Rewire . | . . . . . . . . . . Trap . | . . . . . . . . . . Miscellaneous . | . . . . . . . . . . Route ------- -11/Scrapyard -10/Materials -10/Mines (discovered 2 exits: *Mat x2) -9/Materials -9/Mines (discovered 3 exits: *Mat x2 / *Exi) -9/Exiles -8/Mines -8/Materials -7/Factory (discovered 2 exits: [*Fac] / [*Low]) -7/Lower Caves (discovered 1 exit: Low) History --------- Turn | Location | Event 15 | -11/Scrapyard | Discovered new exit (range 15) 145 | -11/Scrapyard | Entered Materials 197 | -10/Materials | Discovered new exit (range 8) 317 | -10/Materials | Build established: Mutant 523 | -10/Materials | Entered Mines 524 | -10/Mines | Learned location of Storage (-7) 697 | -10/Mines | Discovered new exit (range 7) 807 | -10/Mines | Met a Derelict shopkeep closing up shop 905 | -10/Mines | Met a Derelict testing a Signal Generator 915 | -10/Mines | Discovered new exit (range 9) 928 | -10/Mines | Entered Materials 928 | -9/Materials | Accompanied by 1 ally 928 | -9/Materials | Evolved 2 slots: Utility x1, Weapon x1 1428 | -9/Materials | Discovered new exit (range 10) 1458 | -9/Materials | Entered Mines 1573 | -9/Mines | Assembled infested the area 1630 | -9/Mines | Destroyed 11 combat bots 1685 | -9/Mines | Build established: Scavenger-Tank 1694 | -9/Mines | Learned Materials terminal intel 1758 | -9/Mines | Discovered new exit (range 7) 1864 | -9/Mines | Identified exit to Materials 1995 | -9/Mines | Deemed a non-threat by the Exiles lab entrance 1995 | -9/Mines | Discovered new exit (range 5) 2000 | -9/Mines | Lost 3 parts (1n2w) 2005 | -9/Mines | Entered Exiles 2063 | -9/Exiles | Met 8R-AWN 2106 | -9/Exiles | Met EX-HEX 2200 | -9/Exiles | Met EX-DEC 2214 | -9/Exiles | Learned location of Zion (-7) 2265 | -9/Exiles | Build established: Mutant 2363 | -9/Exiles | Discovered new exit (range 10) 2379 | -9/Exiles | Entered Mines 2552 | -8/Mines | Lost 6 parts (1p2n1u2w) 2629 | -8/Mines | Discovered exit to Materials (range 4) 2637 | -8/Mines | Entered Materials 2637 | -8/Materials | Evolved 2 slots: Propulsion x1, Utility x1 2638 | -8/Materials | Loaded intel: 12 terminal locations 3628 | -8/Materials | Build established: Skirmisher 4353 | -8/Materials | Build established: Mutant 4466 | -8/Materials | Discovered new exit (range 15) 4488 | -8/Materials | Entered Factory 4488 | -7/Factory | Evolved 2 slots: Utility x2 4534 | -7/Factory | Discovered new exit (range 6) 4935 | -7/Factory | Build established: Scavenger-Tank 5100 | -7/Factory | Garrison activated, responded to threat 5150 | -7/Factory | Lost 3 parts (1n1u1w) 5291 | -7/Factory | Discovered new exit (range 18) 5571 | -7/Factory | Garrison activated, responded to threat 5668 | -7/Factory | Lost 5 parts (1p1n1u2w) 6088 | -7/Factory | First assault squad dispatched 6190 | -7/Factory | Entered Lower Caves 6200 | -7/Lower Caves | Encountered a Warlord checkpoint 6221 | -7/Lower Caves | Identified exit to Lower Caves 6283 | -7/Lower Caves | Learned 4 Factory zone layouts 6401 | -7/Lower Caves | Build established: Scavenger-Mutant 6416 | -7/Lower Caves | System corruption reached 10% 6434 | -7/Lower Caves | System corruption reached 30% 6478 | -7/Lower Caves | Core integrity fell below 50% 6510 | -7/Lower Caves | Core integrity fell below 20% 6532 | -7/Lower Caves | Lost 11 parts (1p4n5u1w) 6630 | -7/Lower Caves | Attracted the attention of an 0b10 checkpoint 6671 | -7/Lower Caves | Destroyed by Y-54 Guardian with Gatling Laser Last Messages --------------- 06517_ System corrupted: Heat flow error (+151). 06533_ 4Q4DI|W